bitfinex/quotes_ETHUSD_20250725
["timestamp","ask_amount","ask_price","bid_price","bid_amount"]
[1753457661252,0.9003,3645.2,3645.1,2.88020895]
[1753457662439,0.9003,3645.2,3644.4,0.7505]
[1753457662597,2.74533369,3645.2,3644.9,0.1368]
[1753457662802,0.8983,3645.1,3644.9,0.1368]
[1753457663036,0.92578477,3645.1,3644.5,2.74385527]
[1753457663216,2.74536404,3645.2,3644.8,0.1368]
[1753457663217,0.002,3645.2,3644.8,0.1368]
[1753457663532,0.8983,3645.1,3644.8,0.1368]
[1753457663750,0.4287,3645.0,3644.8,0.1368]
[1753457663940,0.8983,3645.0,3644.8,0.1368]
[1753457664143,0.4287,3644.9,3644.8,0.1368]
[1753457664337,0.4287,3644.9,3644.8,2.88043476]
[1753457664731,0.4287,3644.9,3644.8,0.1368]
[1753457665134,0.4287,3644.9,3644.8,2.88043476]
[1753457665337,0.4287,3644.9,3644.8,0.1368]
[1753457665650,0.8983,3644.9,3644.8,0.1368]
[1753457666041,0.002,3645.2,3644.8,0.1368]
[1753457666042,4.294,3645.2,3644.8,0.1368]
[1753457666241,0.4287,3644.9,3644.8,2.88043268]
[1753457666622,0.4287,3644.9,3644.8,0.1368]
[1753457666951,0.8983,3644.9,3644.8,0.1368]
[1753457667153,0.8983,3644.9,3644.8,2.88043476]
[1753457667468,0.8983,3644.9,3644.8,0.1368]
[1753457668166,1.55707848,3644.9,3644.3,0.1376]
[1753457668331,2.743679,3644.8,3644.3,0.1376]
[1753457668653,2.74390752,3644.5,3644.3,0.1376]
[1753457669071,0.8983,3644.4,3644.3,0.1376]
[1753457669935,0.4287,3644.4,3644.3,2.88161119]
[1753457670153,0.4287,3644.4,3644.3,0.1376]
[1753457670476,4.291,3644.5,3644.4,3.56953575]
[1753457670836,4.291,3644.5,3644.4,0.8256]
[1753457671190,7.93316078,3644.5,3644.3,0.1376]
[1753457671468,0.8983,3644.4,3644.3,0.1376]
[1753457672173,0.8983,3644.4,3644.0,9.31705038]
[1753457672374,0.4287,3644.3,3644.2,0.1376]
[1753457672576,0.4287,3644.3,3644.2,2.88168649]
[1753457672743,4.291,3644.5,3644.2,0.6321]
[1753457672942,4.291,3644.5,3644.3,2.74395591]
[1753457673344,0.4287,3644.7,3644.3,2.74395591]
[1753457673345,4.291,3644.4,3644.3,2.74399399]
[1753457673578,4.291,3644.4,3644.3,3.23849399]
[1753457674073,0.002,3645.2,3645.1,2.74340895]
[1753457674374,0.002,3645.2,3645.1,8.36084303]
[1753457674671,0.002,3645.2,3645.1,8.33340895]
[1753457675968,0.002,3645.2,3645.1,4.04240895]
[1753457676311,0.002,3645.2,3645.1,8.33340895]
[1753457676584,0.002,3645.2,3645.1,4.65559963]
[1753457676755,0.4436,3645.2,3645.1,2.74340895]
[1753457677341,0.905,3645.2,3644.6,4.29]
[1753457677571,0.905,3645.2,3644.7,2.74371004]
[1753457677782,0.903,3645.1,3644.1,0.7712]
[1753457677973,0.93048477,3645.0,3644.2,7.03404166]
[1753457678146,0.903,3644.9,3644.3,2.74401119]
[1753457678341,0.903,3644.8,3644.3,4.29]
[1753457678542,0.903,3644.7,3644.3,7.03399872]
[1753457678787,0.4416,3644.6,3644.4,2.7439359]
[1753457679088,0.4416,3644.5,3644.4,2.7439359]
[1753457679304,0.4416,3644.8,3644.7,2.74366465]
[1753457679589,0.4416,3644.8,3644.5,2.74384369]
[1753457679590,0.4416,3644.8,3644.6,2.74376184]
[1753457679755,0.4614,3645.0,3644.5,2.74383652]
[1753457679955,0.4416,3644.7,3644.6,2.74378532]
[1753457680155,0.4416,3645.1,3644.7,2.74371004]
[1753457680351,0.4416,3645.0,3644.9,2.74354715]
[1753457680688,0.002,3645.2,3645.1,2.74340895]
[1753457681984,0.905,3645.2,3644.8,4.29]
[1753457682188,0.903,3645.1,3644.9,2.74355949]
[1753457682352,0.4416,3645.1,3645.0,2.74348422]
[1753457682551,0.002,3645.2,3645.1,2.74340895]
[1753457683180,0.4436,3645.2,3645.1,2.74340895]
[1753457683564,0.4436,3645.2,3644.9,2.74353839]
[1753457683804,0.903,3645.1,3644.7,4.29]
[1753457684003,0.4614,3645.1,3645.0,2.74348422]
[1753457684195,0.002,3645.2,3645.1,2.74340895]
[1753457685127,0.4436,3645.2,3645.1,2.74340895]
[1753457685412,0.002,3645.2,3645.1,2.74340895]
[1753457685893,0.002,3645.2,3645.1,3.22260895]
[1753457686206,0.002,3645.2,3645.1,3.83290341]
[1753457686606,1.7143,3645.2,3644.8,2.74362848]
[1753457686908,0.903,3645.1,3644.9,0.1368]
[1753457687110,0.93048477,3645.1,3644.9,2.88034548]
[1753457687417,0.002,3645.2,3645.1,2.74340895]
[1753457688108,0.002,3645.2,3645.1,3.22260895]
[1753457688321,0.002,3645.2,3645.1,0.61029031]
[1753457688617,0.4436,3645.2,3645.0,2.88026118]
[1753457688826,0.002,3645.2,3645.0,2.88026118]
[1753457689113,0.002,3645.2,3645.1,2.74340895]
[1753457689613,0.4436,3645.2,3645.1,2.74340895]
[1753457689907,0.002,3645.2,3645.1,2.74340895]
[1753457690919,0.002,3645.2,3645.1,3.35370429]
[1753457691410,0.002,3645.2,3645.1,3.83290429]
[1753457691597,0.4436,3645.2,3645.1,3.35370429]
[1753457692204,0.002,3645.2,3645.1,3.35370429]
[1753457694195,0.002,3645.2,3645.0,0.1368]
[1753457694196,0.4436,3645.2,3645.0,0.1368]
[1753457694512,0.905,3645.2,3645.0,0.1368]
[1753457694681,0.4614,3645.1,3645.0,0.1368]
[1753457694883,0.903,3645.1,3645.0,0.1368]
[1753457695322,0.903,3645.1,3644.6,4.288]
[1753457695323,0.903,3645.1,3644.6,2.74375841]
[1753457695617,5.21848477,3645.0,3644.3,2.74401094]
[1753457695782,0.9461,3644.9,3644.4,0.1368]
[1753457695988,0.903,3644.8,3644.4,0.1368]
[1753457696525,0.903,3644.7,3644.3,2.88156252]
[1753457696686,0.9461,3644.9,3644.4,0.4792]
[1753457697023,4.7296,3644.9,3644.8,0.1368]
[1753457697495,0.002,3645.2,3645.0,2.74348396]
[1753457697684,4.7296,3645.1,3644.9,2.74351587]
[1753457697886,4.7296,3645.1,3645.0,2.74348422]
[1753457698118,4.7296,3645.1,3644.8,3.35963357]
[1753457698119,4.7296,3645.1,3644.8,3.35958564]
[1753457698419,0.4416,3645.0,3644.9,2.74355949]
[1753457699229,4.288,3645.1,3644.8,0.1368]
[1753457699411,4.288,3645.1,3644.9,2.74350845]
[1753457699611,4.7296,3645.1,3645.0,2.74348422]
[1753457699813,4.7296,3645.1,3644.8,2.88042878]
[1753457699814,0.002,3645.2,3645.1,2.74340895]
[1753457700030,4.29,3645.2,3645.1,2.74340895]
[1753457700330,4.7316,3645.2,3645.1,2.88020895]
[1753457700626,4.7316,3645.2,3645.1,0.1368]
[1753457701128,5.193,3645.2,3644.5,1.2493]
[1753457701336,0.8093,3645.0,3644.9,0.1368]
[1753457701633,0.8093,3644.4,3644.1,0.001]
[1753457701839,0.02748477,3644.3,3644.1,0.001]
[1753457702043,2.74408649,3644.2,3644.1,0.001]
[1753457702340,7.97688649,3644.2,3644.1,0.001]
[1753457702592,2.74446304,3643.7,3643.6,0.001]
[1753457702859,10.83966304,3643.7,3643.6,0.001]
[1753457702998,2.7448397,3643.2,3642.9,0.001]
[1753457703205,10.05932447,3643.2,3642.9,0.001]
[1753457703399,11.8806397,3643.2,3642.9,0.001]
[1753457703639,12.47639611,3643.2,3642.9,0.001]
[1753457706145,12.47739611,3643.2,3642.9,0.001]
[1753457706368,8.18939611,3643.2,3642.9,0.001]
[1753457706647,12.47739611,3643.2,3642.9,0.001]
[1753457708316,13.02739611,3643.2,3642.9,0.001]
[1753457708516,8.73939611,3643.2,3642.9,0.001]
[1753457708867,13.02739611,3643.2,3642.9,0.001]
[1753457709148,8.73939611,3643.2,3642.9,0.001]
[1753457709542,13.02739611,3643.2,3642.9,0.001]
[1753457709740,5.73939611,3643.2,3642.9,0.001]
[1753457709950,10.02739611,3643.2,3642.9,0.001]
[1753457710132,13.02739611,3643.2,3642.9,0.001]
[1753457713557,15.27905531,3643.2,3642.9,0.001]
[1753457714864,10.99105531,3643.2,3642.9,0.001]
[1753457715033,15.27905531,3643.2,3642.9,0.001]
[1753457716135,10.99105531,3643.2,3642.9,0.001]
[1753457716359,15.27905531,3643.2,3642.9,0.001]
[1753457717745,22.31905531,3643.2,3642.9,0.001]
[1753457717945,22.31905531,3643.2,3643.1,1e-08]
[1753457718984,6.52676574,3642.9,3642.8,1e-08]
[1753457719177,11.97990288,3642.9,3642.8,1e-08]
[1753457719370,22.07617094,3642.9,3642.8,1e-08]
[1753457720782,17.78817094,3642.9,3642.8,1e-08]
[1753457721110,22.17327094,3642.9,3642.8,1e-08]
[1753457721246,22.62617094,3642.9,3642.8,1e-08]
[1753457723668,16.89227094,3642.9,3642.8,1e-08]
[1753457723869,14.9454338,3642.9,3642.8,0.48140001]
[1753457724079,9.20036806,3642.9,3642.8,0.48140001]
[1753457724277,2.16036806,3642.9,3642.8,3.22654111]
[1753457724479,2.16036806,3642.9,3642.8,3.22974111]
[1753457724480,6.44836806,3642.9,3642.8,3.22974111]
[1753457724685,2.16036806,3642.9,3642.8,4.00114111]
[1753457724984,2.15716806,3642.9,3642.8,4.70332948]
[1753457725190,2.15716806,3642.9,3642.8,4.67267807]
[1753457725886,2.15716806,3642.9,3642.8,1.92753697]
[1753457726094,2.15716806,3642.9,3642.8,1.25280001]
[1753457726294,6.44416806,3642.9,3642.8,1.25280001]
[1753457726464,6.44416806,3642.9,3642.8,3.99794111]
[1753457726650,2.15716806,3642.9,3642.8,3.99794111]
[1753457727303,2.15716806,3642.9,3642.8,1.25280001]
[1753457727897,2.15716806,3642.9,3642.8,0.48140001]
[1753457728563,2.18465283,3642.9,3642.8,0.48140001]
[1753457729156,2.15716806,3642.9,3642.8,0.48140001]
[1753457729961,2.18465283,3642.9,3642.8,0.48140001]
[1753457730775,4.92971857,3642.9,3642.8,0.48140001]
[1753457730980,2.18465283,3642.9,3642.8,0.48140001]
[1753457731563,6.56886938,3642.9,3642.8,1e-08]
[1753457731797,9.54138461,3642.9,3642.8,1e-08]
[1753457734374,9.67898461,3642.9,3642.8,1e-08]
[1753457734702,10.13188461,3642.9,3642.8,1e-08]
[1753457734899,9.67898461,3642.9,3642.8,1e-08]
[1753457736410,10.14368461,3642.9,3642.8,1e-08]
[1753457737347,11.49348461,3642.9,3642.8,1e-08]
[1753457738216,20.18148461,3642.9,3642.8,1e-08]
[1753457739145,7.9431411,3642.8,3642.7,1e-08]
[1753457739310,14.50398384,3642.8,3642.7,1e-08]
[1753457739656,16.64353916,3642.8,3642.7,1e-08]
[1753457740153,16.64353916,3642.8,3642.3,0.001]
[1753457740154,6.29544256,3642.4,3642.3,1e-08]
[1753457740301,20.20294256,3642.4,3642.3,1e-08]
[1753457740500,23.2427143,3642.4,3642.3,1e-08]
[1753457740699,23.2427143,3642.4,3642.1,1e-08]
[1753457740700,2.74559332,3642.2,3642.1,1e-08]
[1753457740957,12.64057809,3642.2,3642.1,1e-08]
[1753457741116,14.69078482,3642.2,3642.1,1e-08]
[1753457741302,16.15418482,3642.2,3642.1,1e-08]
[1753457741940,16.15418482,3642.2,3641.5,0.001]
[1753457741941,3.29604569,3641.6,3641.5,0.001]
[1753457742119,11.9598732,3641.6,3641.5,1e-08]
[1753457742324,14.88494852,3641.6,3641.5,1e-08]
[1753457742649,1.648,3641.4,3640.4,0.001]
[1753457742809,2.74701084,3640.4,3640.1,0.001]
[1753457743140,6.2971018,3640.2,3640.1,0.001]
[1753457743347,7.49325261,3640.2,3640.1,0.001]
[1753457743507,9.63877489,3640.2,3640.1,0.001]
[1753457743707,10.55217489,3640.2,3640.1,0.001]
[1753457743908,24.28512674,3640.2,3640.1,0.001]
[1753457744135,30.87812674,3640.2,3640.1,0.001]
[1753457744451,2.74793218,3639.1,3638.7,0.4887]
[1753457744644,10.06141695,3639.1,3638.7,0.4887]
[1753457744941,7.286,3639.1,3638.7,0.4887]
[1753457745144,11.03263218,3639.1,3638.5,0.4887]
[1753457745347,12.71245067,3639.1,3638.5,0.4887]
[1753457745647,12.71245067,3639.1,3638.2,0.8171]
[1753457745648,11.1606693,3639.1,3638.6,0.4887]
[1753457745875,4.67981849,3639.1,3639.0,0.54899]
[1753457746158,5.96581849,3639.1,3639.0,0.54899]
[1753457747527,1.67981849,3639.1,3639.0,0.54899]
[1753457747739,11.74223544,3639.1,3639.0,0.54899]
[1753457748064,11.71475067,3639.1,3639.0,0.06029]
[1753457748367,13.97625067,3639.1,3639.0,0.06029]
[1753457749565,8.96581849,3639.1,3639.0,0.54899]
[1753457749732,1.67981849,3639.1,3639.0,0.54899]
[1753457749933,5.96581849,3639.1,3639.0,0.54899]
[1753457750373,5.96581849,3639.1,3639.0,3.29699769]
[1753457750542,5.96581849,3639.1,3639.0,0.54899]
[1753457750936,1.67981849,3639.1,3639.0,3.29699769]
[1753457751132,5.96681849,3639.1,3639.0,3.29799769]
[1753457751344,1.67981849,3639.1,3639.0,3.29799769]
[1753457751543,5.96681849,3639.1,3639.0,3.29799769]
[1753457751735,5.96681849,3639.1,3639.0,3.98260189]
[1753457751956,1.67981849,3639.1,3639.0,4.90240189]
[1753457755078,1.67981849,3639.1,3639.0,5.45240189]
[1753457755278,4.287,3640.1,3640.0,2.74725274]
[1753457755480,4.287,3640.2,3640.0,1.3118]
[1753457755679,4.287,3640.1,3640.0,0.8231]
[1753457756259,4.287,3640.1,3639.7,0.4887]
[1753457756476,0.02748477,3640.0,3639.7,0.4887]
[1753457756657,0.02748477,3640.0,3639.6,0.9368]
[1753457756858,4.4246,3640.1,3639.8,2.7474037]
[1753457757064,4.287,3640.1,3639.9,0.4887]
[1753457757371,2.74732822,3639.9,3639.8,0.1376]
[1753457757572,2.9124457,3639.9,3639.1,1.2571]
[1753457757907,2.9124457,3639.9,3639.2,0.1376]
[1753457757908,2.88509607,3639.7,3639.2,0.1376]
[1753457758051,2.77504361,3639.6,3639.2,0.1376]
[1753457758246,4.287,3639.5,3639.1,0.7684]
[1753457758476,0.02748477,3639.4,3639.1,1.2571]
[1753457758789,0.02748477,3639.4,3639.1,0.7684]
[1753457759095,2.74785667,3639.2,3639.0,0.06129]
[1753457759249,7.51111695,3639.1,3639.0,0.06129]
[1753457759455,11.08593218,3639.1,3639.0,0.06129]
[1753457760388,3.1376,3639.1,3639.0,0.06129]
[1753457760683,3.1376,3639.1,3639.0,0.54999]
[1753457760684,7.4246,3639.1,3639.0,0.54999]
[1753457760891,1.52042315,3639.4,3639.0,0.54999]
[1753457760892,1.52042315,3639.4,3639.1,0.8213]
[1753457761186,4.287,3639.3,3639.2,0.4887]
[1753457761686,2.74790925,3639.2,3639.0,0.06129]
[1753457761871,2.77541695,3639.1,3639.0,0.06129]
[1753457762076,3.22411695,3639.1,3639.0,0.06129]
[1753457762685,3.68881695,3639.1,3639.0,0.06129]
[1753457763384,4.287,3639.1,3639.0,0.06129]
[1753457763589,3.0,3639.1,3639.0,0.06129]
[1753457763788,10.03493218,3639.1,3639.0,0.06129]
[1753457763955,11.22132342,3639.1,3639.0,0.06129]
[1753457764157,11.68602342,3639.1,3639.0,0.06129]
[1753457764753,19.27602342,3639.1,3639.0,0.06129]
[1753457766892,20.08532342,3639.1,3639.0,0.06129]
[1753457767402,20.28740637,3639.1,3639.0,1e-08]
[1753457767573,21.93540637,3639.1,3639.0,1e-08]
[1753457767758,2.74823425,3638.7,3638.6,1e-08]
[1753457767960,21.35407902,3638.7,3638.6,1e-08]
[1753457768299,3.0,3637.1,3636.3,1.2732]
[1753457768461,3.0,3636.9,3635.9,0.465]
[1753457768660,0.1376,3636.3,3635.9,0.465]
[1753457768956,7.06462571,3636.2,3636.0,0.465]
[1753457769160,2.75032471,3636.0,3635.3,0.7618]
[1753457769397,0.1376,3635.8,3635.4,0.465]
[1753457769771,4.287,3635.7,3635.4,0.465]
[1753457769967,4.287,3635.7,3635.3,3.65013721]
[1753457769968,4.287,3635.7,3635.3,0.1376]
[1753457770172,4.31448477,3635.6,3635.0,0.465]
[1753457770406,4.287,3635.5,3635.0,0.465]
[1753457770562,4.287,3635.4,3635.3,2.75080461]
[1753457770762,4.287,3635.4,3635.3,0.465]
[1753457771172,3.4456,3636.2,3635.3,0.465]
[1753457771410,3.0,3636.0,3635.3,0.465]
[1753457771791,0.4456,3636.6,3635.3,0.465]
[1753457771991,4.288,3636.5,3635.4,0.84560728]
[1753457772213,4.288,3636.5,3636.3,3.56712272]
[1753457772361,4.288,3636.5,3635.3,0.8171]
[1753457772684,6.71837779,3636.4,3635.4,3.21572106]
[1753457772882,3.9409,3636.4,3635.4,3.21571215]
[1753457773195,2.74981757,3636.7,3635.8,2.75037065]
[1753457773196,4.288,3636.3,3635.8,2.75037065]
[1753457773398,3.0,3636.2,3635.9,0.465]
[1753457773706,3.0,3636.2,3636.0,0.465]
[1753457774043,4.54818744,3636.9,3635.4,0.001]
[1753457774044,1.35298822,3636.9,3636.1,0.465]
[1753457774301,1.35298822,3636.9,3635.4,0.001]
[1753457774302,3.0,3636.6,3635.8,0.465]
[1753457774603,3.0,3636.4,3635.8,0.465]
[1753457774964,3.0,3636.4,3635.8,3.21542299]
[1753457775166,4.289,3636.5,3635.9,0.465]
[1753457775379,0.02748477,3636.4,3635.4,2.75072894]
[1753457775579,4.44956325,3636.4,3635.5,0.465]
[1753457775779,2.75036297,3635.9,3635.3,0.8171]
[1753457776105,0.9409,3636.3,3634.9,0.7685]
[1753457776106,3.0,3635.7,3634.9,0.7685]
[1753457776300,5.7507537,3635.4,3634.9,0.7685]
[1753457776464,2.75095595,3635.1,3634.9,0.7685]
[1753457776668,4.291,3635.1,3634.9,0.7685]
[1753457777015,4.291,3635.1,3635.0,0.465]
[1753457777597,4.291,3635.1,3634.9,0.7685]
[1753457777998,4.291,3635.1,3635.0,0.465]
[1753457778817,4.7366,3635.1,3634.6,0.465]
[1753457779416,2.75115459,3634.9,3634.1,1.2932]
[1753457779591,4.31648477,3634.8,3634.1,3.57991066]
[1753457779798,4.31648477,3634.8,3634.2,0.465]
[1753457780202,4.31648477,3634.8,3634.4,0.1376]
[1753457780407,4.7346,3634.8,3634.2,0.465]
[1753457780598,0.1376,3634.7,3634.2,0.6026]
[1753457780943,0.02748477,3634.6,3634.2,0.6026]
[1753457781095,0.02748477,3634.6,3633.8,0.465]
[1753457781096,2.75156151,3634.3,3633.8,0.465]
[1753457781288,4.4276,3634.2,3633.8,0.465]
[1753457781485,4.4276,3634.2,3633.7,0.8233]
[1753457781685,4.4276,3634.2,3633.9,0.465]
[1753457781884,7.17925561,3634.2,3633.9,0.465]
[1753457782119,4.4276,3634.2,3633.9,0.465]
[1753457782414,4.8732,3634.2,3633.7,0.8233]
[1753457782816,4.8732,3634.2,3633.8,0.465]
[1753457782817,4.4276,3634.2,3633.8,0.465]
[1753457783021,4.4276,3634.2,3633.7,0.8233]
[1753457783221,3.4456,3634.1,3633.7,0.8233]
[1753457783520,0.1376,3634.0,3633.7,0.8233]
[1753457783828,4.291,3633.9,3633.8,0.465]
[1753457784329,4.291,3633.9,3633.7,0.8233]
[1753457784330,4.7366,3633.9,3633.3,3.53531616]
[1753457784536,0.1376,3633.8,3633.4,3.21724083]
[1753457784691,4.291,3633.9,3633.5,0.465]
[1753457784885,4.291,3633.9,3633.6,0.1376]
[1753457785090,4.291,3633.9,3633.7,0.465]
[1753457785288,4.291,3633.9,3633.8,0.465]
[1753457786492,4.291,3633.9,3633.4,2.75222755]
[1753457786493,4.291,3633.9,3633.4,0.465]
[1753457786687,0.1376,3633.8,3633.5,0.465]
[1753457786884,0.1376,3633.8,3633.6,0.465]
[1753457787701,0.47308477,3633.7,3633.3,0.783]
[1753457788048,4.7366,3633.6,3633.3,1.248]
[1753457788191,4.7366,3633.6,3633.3,0.783]
[1753457788396,0.4456,3633.5,3633.0,0.1376]
[1753457788598,0.4456,3633.4,3633.0,3.35512727]
[1753457788947,4.4286,3633.6,3633.1,3.2174497]
[1753457788948,4.291,3633.3,3633.1,3.2174497]
[1753457789237,4.291,3633.3,3632.9,0.8105]
[1753457789534,4.8742,3633.3,3632.9,1.2755]
[1753457789689,3.19804546,3633.2,3632.5,1.2259]
[1753457789892,3.19804546,3633.2,3632.1,2.75315513]
[1753457789893,3.02748477,3633.1,3632.1,0.465]
[1753457790092,0.1376,3632.6,3632.1,0.6026]
[1753457790336,7.76508477,3632.5,3632.1,0.6026]
[1753457790544,0.1376,3632.2,3632.0,0.7609]
[1753457790708,4.292,3632.1,3631.7,2.75352438]
[1753457790892,4.7376,3632.1,3631.7,0.465]
[1753457791428,4.292,3632.1,3631.8,3.21839895]
[1753457791624,4.292,3632.0,3631.9,3.21837977]
[1753457791924,4.292,3632.0,3631.9,3.21836105]
[1753457792934,4.292,3632.0,3631.8,0.1376]
[1753457793136,4.292,3632.0,3631.6,0.7609]
[1753457793137,0.02748477,3631.9,3631.6,0.1376]
[1753457793453,0.02748477,3631.9,3629.1,8.61216296]
[1753457793454,3.0,3631.5,3629.6,0.775]
[1753457793738,8.17448477,3631.4,3630.6,2.7543435]
[1753457793896,7.7686,3631.4,3630.7,2.75427467]
[1753457794092,7.7686,3631.4,3630.7,0.465]
[1753457794322,2.75434605,3630.7,3630.0,9.627164]
[1753457794631,2.75413809,3630.9,3630.0,9.627164]
[1753457794632,8.04481432,3630.6,3630.0,9.627164]
[1753457794852,5.2629,3630.6,3630.0,9.627164]
[1753457795130,6.53182772,3631.0,3630.0,12.38191219]
[1753457795131,3.7777,3631.0,3630.0,12.38191219]
[1753457795337,2.75383847,3631.3,3630.1,0.465]
[1753457795338,4.325,3630.9,3630.1,0.465]
[1753457795625,0.4953,3631.5,3630.8,2.75415165]
[1753457795817,4.332,3631.4,3630.7,0.465]
[1753457796525,0.02748477,3631.3,3630.7,3.21927258]
[1753457796698,4.333,3631.3,3630.7,3.62021492]
[1753457796902,4.333,3631.3,3630.6,0.7906]
[1753457797110,3.48068477,3631.2,3630.5,2.754424]
[1753457797295,0.02748477,3631.1,3630.4,2.75450042]
[1753457797495,0.02748477,3631.1,3630.5,2.75442807]
[1753457797705,0.4532,3631.2,3630.3,3.20969122]
[1753457797914,4.332,3631.1,3630.4,0.48264517]
[1753457798132,4.332,3631.1,3631.0,2.75406224]
[1753457798339,4.332,3631.1,3631.0,3.20916224]
[1753457798656,4.333,3631.5,3631.1,0.7997]
[1753457798933,4.333,3631.8,3631.7,2.75347393]
[1753457799142,4.333,3631.8,3631.7,3.20857393]
[1753457799303,0.4532,3632.5,3631.7,3.20857393]
[1753457799304,1.2965,3633.1,3631.9,2.75337977]
[1753457799509,4.333,3632.4,3631.9,3.96237977]
[1753457799704,0.25177291,3632.3,3631.9,1.209]
[1753457799904,0.25177291,3632.3,3631.4,0.7539]
[1753457799905,1.54522696,3632.0,3631.4,0.7539]
[1753457800106,3.0,3631.8,3630.8,0.7752]
[1753457800306,3.73245768,3631.8,3630.9,2.75413809]
[1753457800504,6.48593669,3631.8,3630.8,0.7752]
[1753457800708,3.0,3631.6,3630.8,3.52935966]
[1753457800908,2.75379528,3631.4,3630.8,0.7752]
[1753457801100,4.98947123,3631.3,3630.6,0.001]
[1753457801292,2.75422376,3630.8,3630.6,0.001]
[1753457801498,10.11877457,3630.7,3630.6,0.001]
[1753457801746,2.75444153,3630.5,3630.0,9.627164]
[1753457802047,3.0,3630.1,3630.0,9.627164]
[1753457802204,8.2804,3630.1,3630.0,9.627164]
[1753457803337,12.01478096,3630.1,3630.0,9.627164]
[1753457803537,12.96168096,3630.1,3630.0,9.627164]
[1753457803834,13.50868096,3630.1,3630.0,1e-08]
[1753457804152,3.0,3630.0,3628.2,0.1376]
[1753457804336,0.8093,3629.1,3628.2,0.1376]
[1753457804521,0.1376,3628.9,3628.6,2.75585207]
[1753457804723,0.1376,3628.9,3628.4,0.1376]
[1753457805061,5.30788477,3628.8,3628.2,0.1376]
[1753457805352,5.30788477,3628.8,3627.5,0.4551]
[1753457805353,0.7795,3628.4,3627.5,0.4551]
[1753457805551,0.1376,3628.2,3627.7,0.1376]
[1753457805845,0.1376,3628.9,3628.5,2.75595574]
[1753457806005,0.7795,3629.8,3629.1,2.75545003]
[1753457806210,0.1376,3629.5,3628.9,0.4551]
[1753457806418,0.1376,3629.5,3629.0,0.1376]
[1753457806609,0.1376,3629.5,3629.1,0.4551]
[1753457806921,3.7231787,3629.4,3628.4,0.4551]
[1753457807116,2.89313112,3629.1,3628.1,0.7867]
[1753457807316,0.1376,3628.6,3628.1,0.7867]
[1753457807527,0.02748477,3628.5,3628.0,0.1376]
[1753457807727,6.38075566,3628.6,3627.6,1.2188]
[1753457807728,0.1376,3628.1,3627.6,0.9013]
[1753457807936,0.1376,3628.1,3627.6,1.54278035]
[1753457808133,0.1376,3628.1,3627.6,0.9013]
[1753457808337,0.1376,3628.1,3627.6,3.65792461]
[1753457808659,0.1376,3628.1,3627.6,0.9013]
[1753457808825,0.96788477,3628.0,3626.5,0.7637]
[1753457809013,3.0,3627.8,3626.6,3.21248927]
[1753457809354,0.7626,3628.2,3626.8,2.75725157]
[1753457809556,0.4532,3628.5,3626.9,0.93427175]
[1753457809724,4.369,3628.4,3627.8,2.75647933]
[1753457809922,4.369,3628.4,3627.7,0.4551]
[1753457810124,4.369,3628.4,3627.9,2.75634455]
[1753457810324,4.369,3628.4,3627.2,2.7569475]
[1753457810325,0.7626,3629.2,3628.0,1.76759276]
[1753457810537,6.615,3629.7,3629.0,2.75554021]
[1753457810716,6.615,3629.7,3629.2,2.75535624]
[1753457810912,4.375,3629.6,3629.0,0.4551]
[1753457811251,4.375,3629.6,3628.7,0.02755807]
[1753457811252,0.7583,3629.3,3627.8,0.4551]
[1753457811441,3.0,3628.5,3627.6,0.7947]
[1753457811623,3.51441167,3628.3,3627.4,0.4551]
[1753457811948,0.96788477,3628.2,3626.6,0.4551]
[1753457812244,2.75677705,3627.5,3626.6,0.4551]
[1753457812455,3.0,3627.3,3626.4,2.75748416]
[1753457812638,2.75704536,3627.1,3626.8,0.001]
[1753457812840,2.75717554,3626.9,3626.8,0.001]
[1753457813046,10.69317554,3626.9,3626.8,0.001]
[1753457813259,11.77071077,3626.9,3626.8,0.001]
[1753457813409,3.55,3626.8,3626.1,0.001]
[1753457813609,5.3264,3626.9,3626.2,2.75770379]
[1753457813852,0.8007,3628.2,3626.2,1.36357388]
[1753457814035,0.4532,3627.5,3626.3,0.4551]
[1753457814238,0.4532,3627.5,3626.4,0.02757555]
[1753457814551,0.8007,3628.7,3626.9,2.75717554]
[1753457814751,5.3344,3628.6,3627.0,3.66378296]
[1753457814910,0.9404,3628.5,3627.0,0.4551]
[1753457815253,2.75646897,3627.9,3626.7,0.7664]
[1753457815460,0.9404,3628.4,3627.5,2.75666629]
[1753457815769,2.75602778,3628.5,3626.9,0.48267175]
[1753457815770,0.4872,3628.3,3626.9,0.48267175]
[1753457815979,4.396,3628.2,3626.7,0.7664]
[1753457816123,2.7568989,3627.3,3626.7,1.2215]
[1753457816324,4.396,3628.2,3626.1,0.02857783]
[1753457816325,4.42448477,3627.2,3626.1,1.2391]
[1753457816635,2.75710902,3627.0,3626.1,1.2391]
[1753457816976,0.02748477,3627.0,3626.1,0.001]
[1753457817128,0.4872,3626.9,3626.1,0.001]
[1753457817324,2.75748749,3626.5,3626.1,0.001]
[1753457817529,4.399,3626.4,3626.1,0.001]
[1753457818067,4.399,3626.3,3626.2,0.4551]
[1753457818252,4.398,3626.4,3626.1,0.001]
[1753457818450,0.02748477,3626.3,3626.1,0.001]
[1753457818623,2.75770779,3626.2,3626.1,0.001]
[1753457818828,8.25130903,3626.2,3626.1,0.001]
[1753457819030,8.22382426,3626.2,3626.1,0.001]
[1753457819668,12.62782426,3626.2,3626.1,0.001]
[1753457819976,8.22382426,3626.2,3626.1,0.001]
[1753457820179,9.87011647,3626.2,3626.1,0.001]
[1753457820329,3.5908,3626.2,3626.1,0.001]
[1753457820529,7.9938,3626.2,3626.1,0.001]
[1753457821552,11.23870779,3626.2,3626.1,0.001]